bitfinex/quotes_SOLUSD_20250818
["timestamp","ask_amount","ask_price","bid_price","bid_amount"]
[1755509353804,0.06,180.67,180.66,11.71899574]
[1755509354128,0.06,180.67,180.66,17.25425534]
[1755509354507,0.06,180.67,180.66,17.95425534]
[1755509355236,0.06,180.67,180.66,43.95425534]
[1755509355937,1e-08,180.67,180.66,59.06047091]
[1755509356336,0.06,180.68,180.67,15.10621557]
[1755509356337,1e-08,180.68,180.67,15.10621557]
[1755509356650,1e-08,180.68,180.67,27.51521131]
[1755509357217,1e-08,180.68,180.67,15.79621557]
[1755509357452,1e-08,180.68,180.67,27.51521131]
[1755509358047,1e-08,180.68,180.67,33.05016453]
[1755509358816,1e-08,180.68,180.67,21.33116879]
[1755509359017,1e-08,180.68,180.67,17.25394896]
[1755509359238,1e-08,180.68,180.67,43.25394896]
[1755509359441,1e-08,180.68,180.67,31.53495322]
[1755509359747,1e-08,180.68,180.67,43.25394896]
[1755509360937,0.71000001,180.68,180.65,11.71899574]
[1755509361142,1e-08,180.68,180.67,11.71899574]
[1755509361643,1e-08,180.68,180.63,60.91662624]
[1755509361818,1e-08,180.68,180.64,26.0]
[1755509362128,0.71000001,180.68,180.65,5.53556601]
[1755509362319,1e-08,180.68,180.65,5.53556601]
[1755509363421,1e-08,180.68,180.66,0.03]
[1755509365324,1e-08,180.68,180.67,37.71899574]
[1755509365647,1e-08,180.68,180.67,94.95521131]
[1755509366343,1e-08,180.68,180.67,84.69394896]
[1755509368824,1e-08,180.68,180.67,72.97495322]
[1755509369051,1e-08,180.68,180.67,84.69394896]
[1755509370153,1e-08,180.68,180.67,43.25394896]
[1755509370331,0.71000001,180.68,180.66,5.56516477]
[1755509370533,0.71,180.67,180.66,17.28416051]
[1755509370734,1e-08,180.68,180.66,17.28416051]
[1755509370930,0.71,180.67,180.66,0.03]
[1755509371556,12.42899574,180.67,180.66,0.03]
[1755509371731,0.71,180.67,180.66,0.03]
[1755509373258,17.96394896,180.67,180.66,0.03]
[1755509373777,0.71,180.67,180.66,0.03]
[1755509374129,1e-08,180.68,180.66,11.74899574]
[1755509374354,1e-08,180.68,180.67,11.71899574]
[1755509375056,1e-08,180.68,180.67,17.25394896]
[1755509375739,1e-08,180.68,180.67,17.94394896]
[1755509376060,1e-08,180.68,180.67,17.25394896]
[1755509376546,1e-08,180.68,180.67,17.94394896]
[1755509378450,1e-08,180.68,180.67,17.25394896]
[1755509378665,0.71000001,180.68,180.66,0.03]
[1755509378944,1e-08,180.68,180.67,11.71899574]
[1755509379134,1e-08,180.68,180.66,5.56517886]
[1755509379369,1e-08,180.68,180.66,0.03]
[1755509380454,0.71,180.67,180.66,0.03]
[1755509380644,1e-08,180.68,180.66,0.03]
[1755509381061,1e-08,180.68,180.66,11.74899574]
[1755509381062,0.71,180.67,180.66,11.74899574]
[1755509381442,1e-08,180.68,180.66,17.28398918]
[1755509381635,1e-08,180.68,180.67,11.71899574]
[1755509381836,1e-08,180.68,180.66,0.03]
[1755509382041,3.65825945,180.67,180.66,0.03]
[1755509382336,4.92298292,180.67,180.66,0.03]
[1755509382539,16.64197866,180.67,180.66,0.03]
[1755509383141,16.64197866,180.67,180.62,0.03]
[1755509383359,20.66836007,180.66,180.62,0.03]
[1755509383561,4.21298292,180.65,180.62,0.03]
[1755509383772,3.65825945,180.64,180.62,0.03]
[1755509383943,3.65825945,180.63,180.62,0.03]
[1755509384148,4.36825945,180.63,180.62,0.03]
[1755509389364,3.65825945,180.63,180.62,0.03]
[1755509389548,3.65825945,180.63,180.62,11.74899574]
[1755509390367,3.65825945,180.63,180.62,5.56648543]
[1755509390552,4.33825945,180.63,180.62,0.03]
[1755509390870,4.33825945,180.63,180.62,5.56648543]
[1755509391167,3.65825945,180.63,180.62,17.28548117]
[1755509392474,4.33825945,180.63,180.62,0.03]
[1755509393843,3.65825945,180.63,180.62,0.03]
[1755509394168,3.65825945,180.63,180.62,5.56648543]
[1755509394468,3.65825945,180.63,180.62,7.56044679]
[1755509394963,3.65825945,180.63,180.62,0.03]
[1755509395269,3.65825945,180.63,180.62,7.56044679]
[1755509395567,3.65825945,180.63,180.62,13.09693222]
[1755509395764,3.65825945,180.63,180.62,5.56648543]
[1755509395962,3.65825945,180.63,180.62,13.09693222]
[1755509397160,3.65825945,180.64,180.62,13.09693222]
[1755509397439,0.68,180.64,180.62,13.09693222]
[1755509398748,3.44311376,180.65,180.62,7.56044679]
[1755509398974,4.12311376,180.65,180.62,7.56044679]
[1755509399272,3.56839029,180.65,180.62,7.56044679]
[1755509399577,3.56839029,180.65,180.62,0.03]
[1755509399750,3.56839029,180.65,180.62,13.09663793]
[1755509400274,1.23472347,180.64,180.62,0.03]
[1755509400475,1.23472347,180.64,180.6,4.19784458]
[1755509400652,0.68,180.63,180.61,7.53044679]
[1755509400852,1.23472347,180.64,180.61,7.53044679]
[1755509401056,0.68,180.63,180.6,11.72829137]
[1755509402073,0.55472347,180.64,180.61,7.53044679]
[1755509402371,0.68,180.63,180.61,7.53044679]
[1755509402848,0.55472347,180.64,180.61,7.53044679]
[1755509403046,7.12530872,180.65,180.62,7.53044679]
[1755509403344,0.68,180.64,180.61,7.53044679]
[1755509403745,0.68,180.64,180.62,5.53648543]
[1755509403971,2.88839029,180.65,180.62,5.53648543]
[1755509404168,1.23472347,180.64,180.61,7.53044679]
[1755509404384,2.88839029,180.65,180.62,0.68]
[1755509404542,1e-08,180.68,180.64,7.53044679]
[1755509404748,1e-08,180.68,180.67,7.53044679]
[1755509405445,1e-08,180.68,180.67,8.21044679]
[1755509405649,1e-08,180.68,180.67,26.68]
[1755509405865,1e-08,180.68,180.67,39.06540001]
[1755509406466,1e-08,180.68,180.67,13.06540001]
[1755509406874,1e-08,180.68,180.67,13.74540001]
[1755509407043,1e-08,180.68,180.67,13.06540001]
[1755509407847,1e-08,180.68,180.67,39.06540001]
[1755509408155,1e-08,180.68,180.67,39.74540001]
[1755509408342,1e-08,180.68,180.67,39.06540001]
[1755509410572,1e-08,180.68,180.67,13.06540001]
[1755509414258,0.68000001,180.68,180.66,7.53044679]
[1755509414658,1e-08,180.68,180.67,7.53044679]
[1755509415393,0.68000001,180.68,180.66,7.53044679]
[1755509415578,1.23472347,180.67,180.6,0.68]
[1755509415765,1.23472347,180.67,180.63,7.53044679]
[1755509416089,1.23472347,180.67,180.59,54.62288047]
[1755509416090,11.89831362,180.66,180.61,13.06723877]
[1755509416293,1.23472347,180.65,180.61,13.06723877]
[1755509416590,0.68,180.65,180.63,7.53044679]
[1755509416983,0.68,180.65,180.62,7.53044679]
[1755509417171,0.68,180.64,180.62,7.53044679]
[1755509417361,0.68,180.63,180.62,7.53044679]
[1755509417682,0.68,180.63,180.61,5.53679198]
[1755509417862,0.68,180.63,180.61,13.06723877]
[1755509418063,0.68,180.65,180.62,7.53044679]
[1755509418263,4.2425903,180.66,180.62,7.53044679]
[1755509418586,4.2425903,180.66,180.63,7.53044679]
[1755509418784,4.36786683,180.66,180.61,5.53679198]
[1755509418986,3.68786683,180.66,180.62,0.67]
[1755509419161,40.8,180.67,180.65,7.53044679]
[1755509419364,40.8,180.67,180.61,46.04877193]
[1755509419569,0.68,180.66,180.63,7.53044679]
[1755509419913,0.68,180.66,180.61,46.04877193]
[1755509420187,0.68,180.66,180.64,7.53044679]
[1755509420498,0.68,180.66,180.64,13.06614541]
[1755509420864,40.8,180.67,180.64,13.06614541]
[1755509421375,0.68,180.66,180.64,13.06614541]
[1755509423592,0.68,180.66,180.64,7.53044679]
[1755509424113,40.8,180.67,180.62,5.53648543]
[1755509424406,0.68,180.65,180.62,5.53648543]
[1755509424598,1.23472347,180.64,180.6,13.06754535]
[1755509424787,1.23472347,180.64,180.61,7.53044679]
[1755509425173,0.55472347,180.65,180.6,5.53709856]
[1755509425402,0.55472347,180.65,180.62,7.53044679]
[1755509425701,1.23472347,180.65,180.62,5.53631436]
[1755509425881,0.68,180.64,180.62,5.53631436]
[1755509426886,3.44310472,180.66,180.62,13.06676115]
[1755509427207,3.69012419,180.65,180.62,13.06676115]
[1755509427418,4.12310472,180.66,180.63,7.53044679]
[1755509427614,3.69023045,180.65,180.63,13.06637327]
[1755509427779,4.12310472,180.66,180.63,13.06637327]
[1755509427973,3.69023043,180.65,180.63,5.53592648]
[1755509428281,0.68,180.65,180.63,5.53592648]
[1755509428882,0.68,180.64,180.61,7.53044679]
[1755509429284,1.23472347,180.64,180.59,26.67]
[1755509429502,1.23472347,180.64,180.61,7.53044679]
[1755509429779,4.12310472,180.66,180.62,7.53044679]
[1755509430083,3.6904401,180.65,180.61,6.20648961]
[1755509430283,4.12310472,180.66,180.62,7.53044679]
[1755509430602,4.37055617,180.65,180.62,7.53044679]
[1755509430801,0.68,180.65,180.62,7.53044679]
[1755509431601,0.68,180.65,180.62,13.06689589]
[1755509433322,3.44310472,180.66,180.62,6.2064491]
[1755509433500,3.69113317,180.65,180.63,7.53044679]
[1755509433687,3.44310472,180.66,180.63,13.06654581]
[1755509433886,3.69114105,180.65,180.63,13.06654581]
[1755509434086,4.12310472,180.66,180.63,5.53609902]
[1755509434314,4.37129938,180.65,180.62,7.53044679]
[1755509434613,0.68,180.65,180.62,7.53044679]
[1755509434817,3.69118255,180.64,180.62,7.53044679]
[1755509435122,0.68,180.63,180.61,5.53679198]
[1755509435407,0.68,180.63,180.6,5.5370115]
[1755509435805,0.68,180.63,180.6,13.06745829]
[1755509436182,0.68,180.63,180.6,5.5370115]
[1755509437113,4.92522719,180.62,180.58,33.56044679]
[1755509437335,0.68,180.64,180.61,7.53044679]
[1755509437621,3.69098381,180.63,180.62,7.53044679]
[1755509437830,3.69098381,180.63,180.62,13.73693222]
[1755509438214,3.69098381,180.65,180.64,26.0]
[1755509438399,1e-08,180.68,180.64,33.53044679]
[1755509438584,3.69167707,180.67,180.64,26.67]
[1755509438780,1e-08,180.68,180.66,7.53044679]
[1755509439023,3.69223521,180.67,180.64,26.67]
[1755509439194,1e-08,180.68,180.65,0.67]
[1755509439605,1e-08,180.68,180.66,0.67]
[1755509439921,1e-08,180.68,180.67,5.53495322]
[1755509440216,1e-08,180.68,180.67,13.06540001]
[1755509441609,1e-08,180.68,180.67,5.53495322]
[1755509441916,1e-08,180.68,180.67,13.06540001]
[1755509442604,1e-08,180.68,180.67,13.73540001]
[1755509443217,1e-08,180.68,180.67,13.06540001]
[1755509443519,1e-08,180.68,180.67,5.53495322]
[1755509443716,1e-08,180.68,180.67,13.06540001]
[1755509443892,1e-08,180.68,180.66,7.53044679]
[1755509444317,1e-08,180.68,180.65,5.53541473]
[1755509444519,1e-08,180.68,180.67,7.53044679]
[1755509445325,1e-08,180.68,180.65,5.53541473]
[1755509445526,1e-08,180.68,180.65,6.20541473]
[1755509445822,1e-08,180.68,180.67,7.53044679]
[1755509446329,1e-08,180.68,180.66,7.53044679]
[1755509446793,0.66000001,180.68,180.66,7.53044679]
[1755509446992,1e-08,180.68,180.67,7.53044679]
[1755509448297,1e-08,180.68,180.67,13.06540001]
[1755509448814,1e-08,180.68,180.67,7.53044679]
[1755509449197,1e-08,180.68,180.66,7.53044679]
[1755509449400,0.66000001,180.68,180.66,7.53044679]
[1755509449598,1e-08,180.68,180.66,6.21524754]
[1755509449798,1e-08,180.68,180.67,7.53044679]
[1755509450327,1e-08,180.68,180.67,13.06540001]
[1755509450701,1e-08,180.68,180.67,13.74540001]
[1755509453933,1e-08,180.68,180.67,13.06540001]
[1755509454421,1e-08,180.68,180.65,5.53556601]
[1755509454611,1e-08,180.68,180.67,7.53044679]
[1755509456209,1e-08,180.68,180.67,13.06540001]
[1755509456408,1e-08,180.68,180.67,13.74540001]
[1755509456915,1e-08,180.68,180.67,13.06540001]
[1755509457099,1e-08,180.68,180.67,13.74540001]
[1755509457717,1e-08,180.68,180.67,13.06540001]
[1755509458732,1e-08,180.68,180.67,5.53495322]
[1755509458917,0.66000001,180.68,180.67,7.53044679]
[1755509459115,1e-08,180.68,180.67,7.53044679]
[1755509459816,1e-08,180.68,180.64,45.93587245]
[1755509460123,1e-08,180.68,180.66,7.53044679]
[1755509460305,0.66,180.67,180.65,13.06593392]
[1755509460919,0.66,180.67,180.65,5.53548713]
[1755509461120,0.66,180.67,180.66,7.53044679]
[1755509461331,0.66,180.67,180.65,5.53548713]
[1755509461840,0.66,180.67,180.66,7.53044679]
[1755509462216,0.66,180.67,180.65,13.06593392]
[1755509463226,1e-08,180.68,180.66,7.53044679]
[1755509463829,1e-08,180.68,180.65,5.53548713]
[1755509464042,1e-08,180.68,180.66,7.53044679]
[1755509464339,1e-08,180.68,180.65,5.53548713]
[1755509464512,1e-08,180.68,180.67,7.53044679]
[1755509465511,3.69857424,180.68,180.67,7.53044679]
[1755509465730,1e-08,180.68,180.67,7.53044679]
[1755509466424,3.69828143,180.68,180.67,7.53044679]
[1755509466615,1e-08,180.68,180.67,13.74540001]
[1755509467638,1e-08,180.69,180.67,13.74540001]
[1755509467822,0.06,180.7,180.69,26.0]
[1755509468142,0.06,180.7,180.69,73.93044679]
[1755509468439,0.06,180.7,180.69,74.61044679]
[1755509468739,0.06,180.74,180.73,26.0]
[1755509468931,0.06,180.75,180.73,74.48375835]
[1755509469130,0.06,180.75,180.74,0.68]
[1755509469330,0.06,180.75,180.74,7.53044679]
[1755509469740,0.06,180.75,180.72,40.4]
[1755509469924,0.06,180.75,180.74,7.53044679]
[1755509470425,0.06,180.75,180.72,41.08]
[1755509470426,0.72,180.75,180.72,7.53044679]
[1755509470624,0.72,180.75,180.7,7.53044679]
[1755509470823,3.69196191,180.74,180.7,7.53044679]
[1755509471243,0.66,180.73,180.7,7.53044679]
[1755509471446,1.21472347,180.73,180.69,7.53044679]
[1755509471744,1.21472347,180.73,180.67,7.53044679]
[1755509471745,0.66,180.72,180.67,7.53044679]
[1755509471916,7.53044679,180.7,180.65,7.53044679]
[1755509472113,3.69196099,180.69,180.66,7.53044679]
[1755509472322,10.20987101,180.73,180.64,5.53580134]
[1755509472323,1.21472347,180.73,180.68,7.53044679]
[1755509472522,4.67723001,180.75,180.71,7.53044679]
[1755509472523,4.24816122,180.74,180.71,7.53044679]
[1755509472728,3.69402811,180.74,180.73,7.53044679]
[1755509472936,0.06,180.75,180.73,7.53044679]
[1755509473129,0.06,180.75,180.74,7.53044679]
[1755509473332,0.72,180.75,180.73,7.53044679]
[1755509473543,0.72,180.75,180.71,7.53044679]
[1755509473721,3.69336577,180.74,180.71,7.53044679]
[1755509473923,0.66,180.73,180.71,7.53044679]
[1755509474130,4.35336577,180.74,180.72,7.53044679]
[1755509474846,4.35336577,180.74,180.68,5.53464688]
[1755509475047,4.35336577,180.74,180.72,7.53044679]
[1755509475352,4.35336577,180.74,180.68,5.53464688]
[1755509475536,4.35336577,180.74,180.72,7.53044679]
[1755509475740,3.69336577,180.74,180.73,7.53044679]
[1755509475930,0.06,180.75,180.73,7.53044679]
[1755509475931,3.75336577,180.75,180.73,7.53044679]
[1755509476245,0.06,180.75,180.74,7.53044679]
[1755509477246,0.06,180.75,180.74,13.06325635]
[1755509478124,0.06,180.75,180.74,7.53044679]
[1755509478952,0.06,180.75,180.74,13.78325635]
[1755509479141,0.06,180.75,180.74,13.06325635]
[1755509480447,0.06,180.75,180.74,7.53044679]
[1755509480636,0.75,180.75,180.73,7.53044679]
[1755509480837,0.69,180.74,180.72,7.53044679]
[1755509481048,0.69,180.74,180.71,13.06409749]
[1755509481241,0.69,180.73,180.71,13.06415276]
[1755509481445,3.69484316,180.74,180.72,7.53044679]
[1755509481627,4.38484316,180.74,180.72,7.53044679]
[1755509481952,12.47023272,180.73,180.67,7.53044679]
[1755509482124,11.91550925,180.72,180.67,2.217725]
[1755509482320,0.06,180.75,180.71,7.53044679]
[1755509482536,0.06,180.75,180.68,27.27346468]
[1755509482537,0.06,180.75,180.74,7.53044679]
[1755509483142,0.06,180.75,180.74,13.06325635]
[1755509484434,0.06,180.75,180.74,17.22654833]
[1755509484656,0.06,180.75,180.74,17.94654833]
[1755509485023,0.06,180.75,180.74,17.22654833]
[1755509485222,0.06,180.75,180.74,5.53280956]
[1755509485454,0.06,180.75,180.74,17.22654833]
[1755509485646,0.06,180.75,180.74,17.94654833]
[1755509487467,1e-08,180.75,180.74,29.6402871]
[1755509488231,1e-08,180.75,180.74,17.94654833]
[1755509488428,1e-08,180.75,180.74,29.6402871]
[1755509488756,1e-08,180.75,180.74,31.8570291]
[1755509489067,1e-08,180.75,180.74,20.16329033]
[1755509489242,1e-08,180.75,180.74,19.44329033]
[1755509489452,1e-08,180.75,180.74,17.22654833]
[1755509490470,1e-08,180.75,180.74,17.94654833]
[1755509491273,1e-08,180.75,180.74,17.22654833]
[1755509493656,0.69000001,180.75,180.74,17.22654833]
[1755509494174,0.69000001,180.75,180.72,11.69373877]
[1755509494335,0.55472347,180.74,180.7,0.03]
[1755509494539,3.69394786,180.73,180.7,0.03]
[1755509494739,0.69,180.72,180.7,11.72373877]
[1755509494986,4.93860984,180.74,180.71,11.69373877]
[1755509495367,0.69,180.73,180.71,11.69373877]
[1755509495668,0.69,180.72,180.7,17.25774582]
[1755509495850,0.69,180.71,180.7,17.25774582]
[1755509496664,0.69,180.71,180.7,11.72373877]
[1755509497169,0.55472347,180.74,180.7,11.72373877]
[1755509497170,4.38218486,180.74,180.7,17.25777308]
[1755509497371,0.69,180.74,180.72,11.69373877]
[1755509497670,0.69,180.73,180.7,5.56403431]
[1755509497867,3.69186374,180.74,180.71,11.69373877]
[1755509498168,0.69,180.72,180.71,11.69373877]
[1755509498348,0.69,180.74,180.71,11.69373877]
[1755509498544,4.3827026,180.74,180.72,11.69373877]
[1755509499278,1e-08,180.75,180.73,11.69373877]
[1755509499464,1e-08,180.75,180.74,11.69373877]
[1755509499672,0.69,180.74,180.73,11.69373877]
[1755509500549,0.69,180.74,180.71,11.69373877]
[1755509500772,3.69366571,180.74,180.71,11.69373877]
[1755509501073,0.69,180.73,180.71,11.69373877]
[1755509501576,0.69,180.73,180.72,11.69373877]
[1755509501878,0.69000001,180.75,180.72,11.69373877]
[1755509502172,0.69,180.74,180.73,11.69373877]
[1755509502983,1e-08,180.75,180.73,11.69373877]
[1755509503179,1e-08,180.75,180.74,11.69373877]
[1755509503552,1e-08,180.75,180.74,17.94654833]
[1755509503765,1e-08,180.75,180.74,17.22654833]
[1755509504358,1e-08,180.75,180.74,13.05152924]
[1755509507875,1e-08,180.75,180.74,7.51871968]
[1755509508276,1e-08,180.75,180.74,13.05152924]
[1755509508780,1e-08,180.75,180.74,7.51871968]
[1755509509295,1e-08,180.75,180.74,13.05152924]
[1755509509470,1e-08,180.75,180.74,7.51871968]
[1755509511069,1e-08,180.75,180.74,13.05152924]
[1755509511265,1e-08,180.75,180.74,7.51871968]
[1755509511469,0.65000001,180.75,180.74,7.51871968]
[1755509511671,1e-08,180.75,180.74,7.51871968]
[1755509512187,1e-08,180.75,180.72,5.53334839]
[1755509512373,0.65000001,180.75,180.73,7.51871968]
[1755509512685,4.35075845,180.74,180.7,13.08265321]
[1755509512895,0.55472348,180.75,180.7,13.08265321]
[1755509512896,3.70075845,180.73,180.71,7.51871968]
[1755509513108,1.20472348,180.75,180.72,7.51871968]
[1755509513264,3.70066348,180.74,180.71,7.51871968]
[1755509513463,3.70066348,180.73,180.71,7.51871968]
[1755509513758,0.65,180.74,180.71,7.51871968]
[1755509513759,0.65,180.74,180.72,7.51871968]
[1755509513959,3.7017295,180.73,180.72,7.51871968]
[1755509514176,4.3517295,180.73,180.71,7.51871968]
[1755509514382,1e-08,180.75,180.7,5.56392339]
[1755509514582,3.70197808,180.74,180.72,7.51871968]
[1755509514790,3.70197808,180.73,180.7,5.56392339]
[1755509514965,1e-08,180.75,180.7,5.56392339]
[1755509515160,3.70198884,180.74,180.71,0.67]
[1755509515364,1e-08,180.75,180.71,0.67]
[1755509515662,1e-08,180.75,180.73,5.53311569]
[1755509516062,1e-08,180.75,180.74,7.51871968]
[1755509516258,3.70174644,180.75,180.74,7.51871968]
[1755509517773,3.70174644,180.75,180.74,13.05152924]
[1755509518190,3.70174644,180.75,180.74,5.53280956]
[1755509518388,3.70174644,180.75,180.74,7.51871968]
[1755509518591,4.35174644,180.75,180.73,7.51871968]
[1755509518773,4.35174643,180.74,180.72,5.53337967]
[1755509519091,3.70400555,180.73,180.72,13.05209935]
[1755509519590,1e-08,180.75,180.72,13.05209935]
[1755509519793,3.70440395,180.74,180.73,7.51871968]
[1755509520671,3.70440395,180.74,180.72,13.05209935]
[1755509520869,12.4278471,180.73,180.7,0.03]
[1755509521074,7.51871968,180.71,180.7,0.03]
[1755509521286,11.7778471,180.71,180.7,0.03]
[1755509521691,12.4278471,180.71,180.7,0.03]
[1755509521895,17.96157517,180.71,180.7,0.03]
[1755509522707,10.44285549,180.71,180.7,0.03]
[1755509522886,12.4278471,180.71,180.7,0.03]
[1755509523799,30.90912742,180.71,180.7,0.03]
[1755509523981,30.25912742,180.71,180.7,0.03]
[1755509524403,30.90912742,180.71,180.7,0.03]
[1755509524708,40.28,180.74,180.7,7.54871968]
[1755509524908,3.69954076,180.73,180.71,7.51871968]
[1755509525206,40.28,180.74,180.7,7.54871968]
[1755509525416,4.3494394,180.73,180.7,7.54871968]
[1755509525589,0.65,180.73,180.7,7.54871968]
[1755509525973,0.65,180.73,180.7,13.08260361]
[1755509526215,0.65,180.72,180.7,0.03]
[1755509526511,3.69859763,180.71,180.7,0.03]
[1755509526679,3.69859763,180.71,180.7,7.54871968]
[1755509526876,3.69859763,180.71,180.7,13.08275399]
[1755509527074,3.69859763,180.73,180.7,13.75275399]
[1755509527296,40.83472347,180.74,180.71,7.51871968]
[1755509527504,4.3493829,180.73,180.7,13.08275399]
[1755509527812,4.34929167,180.72,180.7,0.03]
[1755509527979,3.69929167,180.71,180.7,0.03]
[1755509529788,3.69929167,180.71,180.7,7.54871968]
[1755509530190,3.69929167,180.71,180.7,0.03]
[1755509530879,40.28,180.74,180.7,7.54871968]
[1755509531082,3.70084141,180.73,180.72,7.51871968]
[1755509531702,4.90556488,180.73,180.7,0.03]
[1755509531888,4.35084141,180.72,180.7,0.03]
[1755509532091,0.65,180.72,180.7,0.03]
[1755509532300,0.65,180.72,180.7,13.08275399]
[1755509532519,2.8868088,180.73,180.7,13.08275399]
[1755509532700,3.70111881,180.72,180.7,13.08275399]
[1755509532895,3.5368088,180.73,180.7,13.08275399]
[1755509533112,3.70111881,180.72,180.7,13.08275399]
[1755509533318,3.5368088,180.73,180.71,7.51871968]
[1755509533487,3.70099419,180.72,180.71,7.51871968]
[1755509533885,3.70099419,180.72,180.7,0.03]
[1755509534089,0.65,180.72,180.7,7.54871968]
[1755509535606,3.44153227,180.73,180.7,13.08273743]
[1755509535802,3.70140651,180.72,180.7,13.08273743]
[1755509535990,3.44153227,180.73,180.7,0.03]
[1755509536202,0.68,180.71,180.7,0.03]
[1755509536808,4.12153227,180.73,180.7,5.56399447]
[1755509537104,3.7020647,180.72,180.71,7.51871968]
[1755509537501,3.7020647,180.72,180.7,13.08271415]
[1755509537817,0.68,180.72,180.7,0.03]
[1755509538012,0.68,180.71,180.7,0.03]
[1755509538197,0.68,180.72,180.7,0.03]
[1755509541412,0.68,180.72,180.7,7.54871968]
[1755509542626,3.44153227,180.73,180.7,13.08268962]
[1755509542806,3.70094639,180.72,180.7,13.08268962]
[1755509543005,4.12153227,180.73,180.7,13.08268962]
[1755509543302,3.70072836,180.72,180.7,13.08268962]
[1755509543503,4.12153227,180.73,180.7,13.08268962]
[1755509543705,3.70068726,180.72,180.7,13.08268962]
[1755509543907,4.12153227,180.73,180.7,7.54871968]
[1755509544107,3.70068726,180.72,180.7,7.54871968]
[1755509544291,4.12153227,180.73,180.7,0.03]
[1755509544502,4.38147604,180.72,180.7,0.03]
[1755509544691,0.68,180.72,180.7,0.03]
[1755509545223,3.44153227,180.73,180.7,0.03]
[1755509545431,4.38201212,180.72,180.7,0.03]
[1755509545595,0.68,180.72,180.7,0.03]
[1755509545906,52.6748265,180.71,180.7,0.03]
[1755509547022,45.15610682,180.71,180.7,0.03]
[1755509547195,52.6748265,180.71,180.7,0.03]
[1755509547595,58.20855457,180.71,180.7,0.03]
[1755509547792,62.82850135,180.71,180.7,0.03]
[1755509548021,77.93471692,180.71,180.7,0.03]
[1755509548296,77.42471457,180.71,180.69,0.03]
[1755509548513,39.11385583,180.7,180.69,0.03]
[1755509548715,46.63257551,180.7,180.69,0.03]
[1755509548909,48.05666539,180.7,180.69,0.03]
[1755509549438,43.43413734,180.7,180.69,0.03]
[1755509549599,52.16522434,180.7,180.69,0.03]
[1755509549798,52.71994781,180.7,180.69,0.03]
[1755509550220,37.71760443,180.7,180.69,0.03]
[1755509550542,41.10621557,180.66,180.58,13.80632561]
[1755509550731,51.9948265,180.65,180.58,13.80632561]
[1755509550898,52.6748265,180.65,180.58,8.26871968]
[1755509551098,52.6748265,180.65,180.6,7.54871968]
[1755509551641,52.6748265,180.65,180.6,5.5670828]
[1755509551816,52.6748265,180.65,180.61,5.53677349]
[1755509552016,44.47610682,180.65,180.61,13.05549317]
[1755509552223,44.47610682,180.65,180.61,5.53677349]
[1755509552407,47.36450646,180.65,180.61,7.51871968]
[1755509552610,48.04450646,180.65,180.61,7.51871968]
[1755509552839,46.80978299,180.65,180.64,7.54871968]
[1755509553039,43.10839964,180.65,180.64,0.03]
[1755509553224,43.78839964,180.65,180.64,0.03]
[1755509553546,43.10839964,180.65,180.64,0.03]
[1755509554121,43.78839964,180.65,180.64,0.03]
[1755509555311,51.30711932,180.65,180.64,0.03]
[1755509555640,75.639337,180.65,180.64,0.03]
[1755509556920,68.12061732,180.65,180.64,0.03]
[1755509557245,75.639337,180.65,180.64,0.03]
[1755509557444,75.63806819,180.65,180.64,0.03]
[1755509557943,6.57756693,180.65,180.64,0.03]
[1755509558153,46.81756693,180.65,180.64,0.03]
[1755509558314,55.01628661,180.65,180.64,0.03]
[1755509558738,7.1322904,180.65,180.64,26.03]
[1755509559049,43.12839964,180.65,180.64,0.03]
[1755509559258,2.88839964,180.65,180.64,0.75]
[1755509559930,2.88839964,180.65,180.64,0.03]
[1755509560333,40.24,180.66,180.64,13.80459213]
[1755509560717,40.24,180.66,180.64,7.54871968]
[1755509560923,40.24,180.66,180.64,0.03]
[1755509561121,0.55472347,180.65,180.64,26.03]
[1755509561619,1.23472347,180.65,180.64,26.03]
[1755509562633,17.97567551,180.65,180.64,0.03]
[1755509563541,4.24138982,180.65,180.64,0.03]
[1755509564321,0.55472347,180.65,180.64,0.03]
[1755509565435,40.3,180.66,180.64,0.75]
[1755509565623,40.3,180.66,180.64,0.03]